Cogmind - Beta 17 @@@ ROGUE MODE // 2026.07.14 @ 13:48:19 Player: sirpanda Result: Destroyed by Y-54 Guardian with Gatling Laser Performance ------------- Evolutions (3) 1500 Regions Visited (5) 1000 Robots Destroyed (32) 160 Value Destroyed (811) 811 Prototype IDs (1) 20 Alien Tech Used (0) 0 Bonus (7) 7 TOTAL SCORE: 3498 Bonus ------- Follower Combat Kills 7 Cogmind --------- Core Integrity 0/700 Matter 119/300 Energy 125/125 System Corruption 0% Temperature Cool (6) Movement Core (100) Ox1 Location -7/Factory Parts ------- > --- POWER (1) -------- Light Ion Engine > --- PROPULSION (4) --- (None) > --- UTILITY (6) ------ Advanced Visual Processing Unit Advanced Visual Processing Unit Improved Signal Interpreter Advanced Targeting Computer Core Analyzer Hacking Suite > --- WEAPON (2) ------- Katana > --- INVENTORY (5) ---- Hacking Suite System Shield Remote Datajack Powered Hammer Peak State ------------ > --- POWER ------------ Improved Ion Engine > --- PROPULSION ------- Improved Carbon-fiber Leg Improved Carbon-fiber Leg Improved Carbon-fiber Leg Improved Carbon-fiber Leg > --- UTILITY ---------- Advanced Visual Processing Unit Improved Sensor Array Advanced Targeting Computer Hacking Suite Hacking Suite Hacking Suite > --- WEAPON ----------- Light Cannon Katana > --- INVENTORY -------- Light Ion Engine Advanced Targeting Computer Assault Cannon Remote Datajack [Rating: 41] Favorites ----------- Power Ion Engine Engine Ion Engine Propulsion Improved Carbon-fiber Leg Leg Improved Carbon-fiber Leg Flight Unit Flight Unit Utility Hacking Suite Device Improved Sensor Array Storage Small Storage Unit Processor Advanced Visual Processing Unit Hackware Hacking Suite Protection Light Armor Plating Weapon Light Cannon Energy Gun Particle Gun Ballistic Gun Light Assault Rifle Ballistic Cannon Light Cannon Launcher Grenade Launcher Impact Weapon Powered Hammer Slashing Weapon Katana Build | -11 -10 -10 -9 -8 -7 ------- Run | Yrd Mat Min Mat Mat Fac Slots Evolved 6 | . . . 2 2 2 Power . | . . . . . . Propulsion 2 | . . . 1 . 1 Utility 4 | . . . 1 2 1 Weapon . | . . . . . . Parts Attached 45 | 3 10 6 12 6 8 Power 7 | . 2 1 2 1 1 Engine 7 | . 2 1 2 1 1 Core . | . . . . . . Reactor . | . . . . . . Propulsion 16 | . 4 2 6 3 1 Treads . | . . . . . . Leg 11 | . 4 2 1 3 1 Wheel . | . . . . . . Hover . | . . . . . . Flight 5 | . . . 5 . . Utility 12 | 1 2 . 3 1 5 Device 1 | . . . 1 . . Storage 2 | 1 1 . . . . Processor 5 | . . . . 1 4 Hackware 3 | . 1 . 1 . 1 Protection 1 | . . . 1 . . Artifact . | . . . . . . Weapon 10 | 2 2 3 1 1 1 Energy Gun 2 | 1 . 1 . . . Energy Cannon . | . . . . . . Ballistic Gun 1 | 1 . . . . . Ballistic Cannon 3 | . 1 1 . 1 . Launcher 1 | . . 1 . . . Special Weapon . | . . . . . . Impact Weapon 2 | . 1 . . . 1 Slashing Weapon 1 | . . . 1 . . Piercing Weapon . | . . . . . . Special Melee Weapon . | . . . . . . Unidentified Prototypes 1 | . . . . 1 . Parts Lost 13 | . . 2 2 . 9 Power 2 | . . . . . 2 Propulsion 5 | . . . 2 . 3 Utility 3 | . . . . . 3 Weapon 3 | . . 2 . . 1 Highest Loss Streak 5 | . . 2 2 . 5 To Critical Strikes . | . . . . . . Average Backups 5 | 3 6 7 6 3 4 Power 1 | 1 1 . 1 1 . Propulsion 1 | 1 2 1 . . . Utility 1 | . . 2 3 1 1 Weapon 1 | . 1 1 1 . 1 Tool/Special . | . . . . . . Unused Backups 17 | . 4 4 3 . 6 Power 2 | . 1 . 1 . . Propulsion 4 | . 1 2 1 . . Utility 8 | . 2 1 1 . 4 Weapon 1 | . . . . . 1 Tool/Special 2 | . . 1 . . 1 Average Slot Usage (%) 88 | . 83 99 94 93 80 Engine 9 | . 10 14 11 5 5 Leg 20 | . 20 28 14 5 21 Flight 3 | . . . 16 20 . Device 2 | . . . . 8 4 Storage 7 | . 14 14 5 . . Processor 6 | . . . . 9 17 Hackware 13 | . 10 14 22 18 12 Protection 2 | . . . 5 8 3 Energy Gun 1 | . . 5 . . . Ballistic Gun 3 | . 14 . . . . Ballistic Cannon 9 | . 12 7 11 8 9 Launcher 3 | . . 12 5 . . Slashing Weapon 1 | . . . 3 8 1 Peak Build Rating 41 | 3 10 12 16 34 41 Average Rating 17 | 2 7 10 14 22 31 On Entrance 12 | . 3 10 11 16 32 Avg Prop Armor Cover (%) . | . . . . . . Naked Turns . | . . . . . . Heaviest Build 19 | 8 14 16 16 19 19 Greatest Support 72 | 3 20 20 30 54 72 Greatest Overweight (x) 3 | 2 2 . 3 . 1 Average Overweight (x) . | 1 . . . . . Largest Inventory Capacity 15 | 8 15 8 8 5 5 Average Capacity 6 | 7 8 8 6 5 5 Most Carried 8 | 5 8 8 8 5 5 Average Carried 5 | 3 6 7 5 3 4 Final Capacity 8 | 8 8 8 5 5 5 Final Carried 8 | 4 8 8 4 5 4 Class Distribution -------------------- 38% | Scavenger-Mutant 36% | Mutant 12% | Hacker-Mutant 11% | Scientist-Mutant Dominant Class ---------------- Mutant | -10/Materials Scavenger-Mutant | -10/Mines Scavenger-Mutant | -9/Materials Scavenger-Mutant | -8/Materials Scientist-Mutant | -7/Factory Resources | -11 -10 -10 -9 -8 -7 ----------- Run | Yrd Mat Min Mat Mat Fac Matter Collected 1005 | 237 325 68 202 2 171 Remotely . | . . . . . . Salvage Created 1019 | 55 573 73 89 19 210 Parts 48 | 2 25 5 6 . 10 Haulers Intercepted . | . . . . . . Recyclers Shooed 1 | . . 1 . . . Parts Field Recycled . | . . . . . . Retrieved Matter . | . . . . . . Parts Self-Destructed . | . . . . . . Prevented . | . . . . . . Parts Restored . | . . . . . . Kills | -11 -10 -10 -9 -8 -7 ------- Run | Yrd Mat Min Mat Mat Fac Combat Hostiles Destroyed 16 | . 10 2 3 1 . Melee 5 | . 1 2 2 . . Guns 1 | . 1 . . . . Cannons 8 | . 7 . . 1 . AOE 1 | . . . 1 . . Classes Destroyed 8 | 1 4 . 2 . 1 Builder 2 | . . . . . 2 Tunneler 2 | 2 . . . . . Recycler 4 | . 3 . . . 1 Operator 4 | . 1 . . . 3 Watcher 4 | . 2 . 1 . 1 Swarmer 2 | . . . 2 . . Grunt 13 | . 10 2 . 1 . Sentry 1 | . . . 1 . . Best Kill Streak 5 | 2 5 2 1 1 3 Combat Bots Only 4 | . 4 2 1 1 . Max Kills in Single Turn 1 | 1 1 1 1 1 1 Gunslinging . | . . . . . . Exploded 1 | . . . 1 . . Melee 1 | . 1 1 1 . . Uniques/NPCs Destroyed . | . . . . . . Combat | -11 -10 -10 -9 -8 -7 -------- Run | Yrd Mat Min Mat Mat Fac Hostile Shots Fired 462 | . 73 13 31 38 307 Missed 204 | . 26 3 8 17 150 Hits 258 | . 47 10 23 21 157 Projectile 258 | . 47 10 23 21 157 Critical Strikes 3 | . . . . 2 1 Damage Taken 2954 | 30 603 137 312 327 1545 Core 1015 | . 184 . . 126 705 Absorbed by Shields . | . . . . . . Regen/Repaired (Parts) 135 | . . . . 135 . Core Remaining (%) 75 | 100 . 26 100 77 . Volleys Fired 93 | 11 41 1 14 17 9 Largest 2 | 2 2 2 2 2 2 Hottest 67 | 60 50 50 60 67 67 Shots Fired 154 | 22 81 2 16 18 15 Gun 64 | 22 41 1 . . . Cannon 88 | . 40 1 14 18 15 Launcher 2 | . . . 2 . . Special . | . . . . . . Kinetic 141 | 11 81 2 14 18 15 Thermal . | . . . . . . Explosive 2 | . . . 2 . . Electromagnetic 11 | 11 . . . . . Robot Hit Streak 13 | 6 6 4 4 10 13 Robot Miss Streak 6 | 3 6 1 4 5 1 Penetration Max . | . . . . . . Secondary Targets . | . . . . . . Shots Hit Robots 103 | 14 50 3 9 13 14 Core Hits 42 | 3 24 2 5 3 5 Critical Kills . | . . . . . . Critical Parts Destroyed 2 | . 1 . . . 1 Critical Strikes 7 | 1 4 . . 1 1 Blast 3 | . 3 . . . . Corrupt 1 | 1 . . . . . Smash 2 | . 1 . . . 1 Sever 1 | . . . . 1 . Melee Attacks 50 | . 10 4 8 12 16 Impact 19 | . 10 4 . . 5 Slashing 31 | . . . 8 12 11 Piercing . | . . . . . . Sneak Attacks 5 | . . . . . 5 Combat Hostiles . | . . . . . . Follow-up Attacks . | . . . . . . Damage Inflicted 2205 | 179 828 84 178 294 642 Guns 326 | 155 161 10 . . . Cannons 1018 | . 447 . 108 263 200 Explosions 39 | 24 . . 15 . . Melee 815 | . 220 67 55 31 442 Ramming 7 | . . 7 . . . Kinetic 1253 | 64 608 10 108 263 200 Thermal 24 | 24 . . . . . Explosive 15 | . . . 15 . . Electromagnetic 91 | 91 . . . . . Impact 729 | . 220 67 . . 442 Slashing 86 | . . . 55 31 . Piercing . | . . . . . . Highest Corruption 1 | . . . . 1 . Average Corruption 1 | . . . . 1 . Corruption Purged . | . . . . . . Corruption Blocked . | . . . . . . Overload Shots . | . . . . . . Overflow Damage 354 | . 50 . . 12 292 Projectiles 12 | . . . . 12 . Explosions . | . . . . . . Melee 342 | . 50 . . . 292 Knockbacks 7 | . 2 . . 3 2 Impact 1 | . . . . . 1 Kinetic 6 | . 2 . . 3 1 Secondary . | . . . . . . Self-Inflicted Damage 70 | 30 . . 40 . . Shots 2 | 1 . . 1 . . Rammed . | . . . . . . Targets Rammed 1 | . . 1 . . . Kicked 1 | . . 1 . . . Crushed . | . . . . . . Highest Temperature 55 | 32 55 16 10 32 2 Average Temperature 15 | 10 17 7 3 18 2 Received Heat Transfer 903 | . 318 75 36 162 312 Siege Activations . | . . . . . . Martial Activations . | . . . . . . Shielding Activations . | . . . . . . Robots Disrupted . | . . . . . . Combat Hostiles . | . . . . . . Robots Corrupted 2 | . 1 . . . 1 Combat Hostiles 1 | . 1 . . . . Parts Fried 9 | . 3 . . . 6 Impact Corruptions 11 | . 2 . . . 9 Robots Melted . | . . . . . . Combat Hostiles . | . . . . . . Parts Melted . | . . . . . . Heat Transferred . | . . . . . . Parts Sabotaged . | . . . . . . Parts Stolen . | . . . . . . Parts Stripped . | . . . . . . Power Chain Reactions 1 | 1 . . . . . Alert | -11 -10 -10 -9 -8 -7 ------- Run | Yrd Mat Min Mat Mat Fac Maximum Alert Level . | . . . . . . Low Security (%) 100 | 100 100 100 100 100 100 Level 1 . | . . . . . . Level 2 . | . . . . . . Level 3 . | . . . . . . Level 4 . | . . . . . . Level 5 . | . . . . . . High Security . | . . . . . . Max Security . | . . . . . . Peak Influence 197 | 10 125 61 55 40 197 Initial 31 | . . 31 . 18 13 Average 24 | . 47 4 22 13 31 Influence Increases 964 | 10 302 50 213 86 303 Destroy 0b10 Robot/C 340 | . 200 40 80 20 . Destroy 0b10 Robot/NC 80 | 10 30 . 5 . 35 Destroy Leader 68 | . 44 10 12 . 2 Allied During Kill 1 | . . . 1 . . Successful Hack 21 | . 13 . . . 8 Disable Machine 45 | . 15 . 30 . . Destroy Structure 19 | . . . 10 6 3 Partial Spotted 30 | . . . . . 30 Lose Combat Pursuer 360 | . . . 75 60 225 Influence Decreases 786 | 10 219 133 168 101 155 Entered New Map 96 | . . 52 . 27 17 Time Decay 573 | 10 219 61 91 74 118 Lost Part 60 | . . 20 20 . 20 Lost Ally 20 | . . . 20 . . Purge Threat 37 | . . . 37 . . Squads Dispatched 11 | . 2 1 1 1 6 Investigation 5 | . 2 1 . 1 1 Extermination 2 | . . . . . 2 Reinforcement 4 | . . . 1 . 3 Assault . | . . . . . . Garrison . | . . . . . . Intercept . | . . . . . . Searches Triggered . | . . . . . . Construction Impeded . | . . . . . . Haulers Reinforced . | . . . . . . Active Scanning Responses . | . . . . . . Cargo Convoy Interrupts . | . . . . . . Stealth | -11 -10 -10 -9 -8 -7 --------- Run | Yrd Mat Min Mat Mat Fac Distress Signals 3 | . 1 . 1 1 . Communications Jammed . | . . . . . . Distress Signals . | . . . . . . Times Spotted 71 | . 18 2 16 10 25 Peak Tracking Total 7 | . 3 2 5 6 7 Tactical Retreats 13 | . . . 3 2 8 Traps | -11 -10 -10 -9 -8 -7 ------- Run | Yrd Mat Min Mat Mat Fac Traps Triggered 4 | . 1 . . . 3 Indirectly . | . . . . . . Trap Hack Attempts . | . . . . . . Triggered . | . . . . . . Disarmed . | . . . . . . Reprogrammed . | . . . . . . Reused . | . . . . . . Traps Extracted . | . . . . . . Installed . | . . . . . . Triggered . | . . . . . . Machines | -11 -10 -10 -9 -8 -7 ---------- Run | Yrd Mat Min Mat Mat Fac Machines Disabled 3 | . 1 . 2 . . Max in Single Turn 1 | . 1 . 1 . . Machines Repaired . | . . . . . . Machines Dismantled . | . . . . . . Machines Sabotaged . | . . . . . . Overloaded Fab Kills . | . . . . . . Hacking | -11 -10 -10 -9 -8 -7 --------- Run | Yrd Mat Min Mat Mat Fac Machines Accessed 14 | . 4 1 3 1 5 Terminals 10 | . 4 . 2 . 4 Fabricators . | . . . . . . Repair Stations 1 | . . . . 1 . Recycling Units . | . . . . . . Scanalyzers 2 | . . . 1 . 1 Garrison Access . | . . . . . . Total Hacks 36 | . 8 1 9 5 13 Successful 23 | . 2 1 6 5 9 Failed 13 | . 6 . 3 . 4 Catastrophic 6 | . 3 . 1 . 2 Database Lockouts . | . . . . . . Manual 17 | . 8 . 4 . 5 Terminals 19 | . 8 . 4 . 7 Fabricators . | . . . . . . Repair Stations 5 | . . . . 5 . Recycling Units . | . . . . . . Scanalyzers 11 | . . . 5 . 6 Garrison Access . | . . . . . . Terminal Hacks 7 | . 2 1 1 . 3 Record 1 | . . . . . 1 Open Door 1 | . . 1 . . . Open DSF 1 | . . . . . 1 Branch Access Points 1 | . 1 . . . . Unreport Threat 2 | . 1 . 1 . . Recall Investigation 1 | . . . . . 1 Fabricator Hacks . | . . . . . . Repair Station Hacks 5 | . . . . 5 . Scan Component 3 | . . . . 3 . Repair 2 | . . . . 2 . Recycling Unit Hacks . | . . . . . . Scanalyzer 11 | . . . 5 . 6 Insert Component 1 | . . . . . 1 Analyze 1 | . . . . . 1 Retrieve Study 9 | . . . 5 . 4 Garrison Access Hacks . | . . . . . . Unauthorized Hacks . | . . . . . . Terminals . | . . . . . . Fabricators . | . . . . . . Repair Stations . | . . . . . . Recycling Units . | . . . . . . Scanalyzers . | . . . . . . Garrison Access . | . . . . . . Data Cores Recovered 1 | . 1 . . . . Used . | . . . . . . Hacking Detections 12 | . 4 . 3 1 4 Full Trace Events 4 | . 1 . 1 1 1 Feedback Events 1 | . . . . 1 . Corruption 1 | . . . . 1 . Feedback Blocked . | . . . . . . Robot Schematics Acquired . | . . . . . . Robots Built . | . . . . . . Authchips . | . . . . . . Time . | . . . . . . Total Robot Build Rating . | . . . . . . Part Schematics Acquired . | . . . . . . Parts Built . | . . . . . . Authchips . | . . . . . . Time . | . . . . . . Total Part Build Rating . | . . . . . . Part Studies Acquired 8 | . . . 4 . 4 Parts Repaired 2 | . . . . 2 . Time 52 | . . . . 52 . Parts Recycled . | . . . . . . Recycled Matter . | . . . . . . Retrieved Matter . | . . . . . . Retrieved Components . | . . . . . . Parts Scanalyzed 1 | . . . . . 1 Part Schematics Acquired . | . . . . . . Parts Damaged . | . . . . . . Bothacking | -11 -10 -10 -9 -8 -7 ------------ Run | Yrd Mat Min Mat Mat Fac Used RIF Installer . | . . . . . . Robots Hacked . | . . . . . . Non-combat . | . . . . . . Combat . | . . . . . . Robot Hacks Applied . | . . . . . . Relay Couplers Released . | . . . . . . Fabnet Peak Effective % . | . . . . . . Robots Rewired . | . . . . . . Allies Hacked . | . . . . . . Hacks Repelled . | . . . . . . Allies | -11 -10 -10 -9 -8 -7 -------- Run | Yrd Mat Min Mat Mat Fac Total Allies 3 | . . 3 . . . Largest Group 3 | . . 3 3 . . Highest-Rated Group 40 | . . 40 40 . . Highest-Rated Ally 16 | . . 16 16 . . Total Orders . | . . . . . . Ally Attacks 11 | . . . 11 . . Total Damage 79 | . . . 79 . . Kills 1 | . . . 1 . . Allies Corrupted . | . . . . . . Allies Melted . | . . . . . . Intel | -11 -10 -10 -9 -8 -7 ------- Run | Yrd Mat Min Mat Mat Fac Active Infowar (turns) 1304 | . . . 1 255 1048 Optics 1303 | . . . . 255 1048 Sensors 943 | . . . 1 254 688 Robot Analysis Total . | . . . . . . Derelict Logs Recovered 2 | . . 2 . . . Drone Launches . | . . . . . . Drone Recoveries . | . . . . . . Exploration | -11 -10 -10 -9 -8 -7 ------------- Run | Yrd Mat Min Mat Mat Fac Turns Passed 3321 | 155 733 797 333 255 1048 Spaces Moved 2865 | 99 430 612 403 261 1060 Core 614 | 99 116 . . . 399 Treads . | . . . . . . Legs 1703 | . 314 612 96 20 661 Wheels . | . . . . . . Hover . | . . . . . . Flight 548 | . . . 307 241 . Fastest Speed 34 | 50 120 120 34 34 50 Average Speed 94 | 117 128 120 57 40 90 Slowest Speed 280 | 150 150 120 280 120 120 Overloaded Moves . | . . . . . . Propulsion Burnouts . | . . . . . . Robots Hopped . | . . . . . . Potential Cave-ins 9 | . . . . 4 5 Cave-ins Triggered . | . . . . . . Exploration Rate (%) 34 | 5 51 91 23 18 20 Regions Visited 5 Branch Regions 1 Pre-discovered Areas . | . . . . . . Known Exits Taken 1 | . 1 . . . . Unknown Exits Taken 4 | 1 . 1 1 1 . Scrap Searched 1 | . . 1 . . . Spaces Dug 21 | . . . . 11 10 Terrain Destroyed 34 | 3 . . 10 11 10 Melee 21 | . . . . 11 10 Projectile . | . . . . . . AOE 13 | 3 . . 10 . . Terrain Rammed . | . . . . . . Walls Destroyed . | . . . . . . Machines Disabled . | . . . . . . Actions | -11 -10 -10 -9 -8 -7 --------- Run | Yrd Mat Min Mat Mat Fac Total 3274 | 117 527 667 477 373 1113 Wait 120 | . 9 25 24 62 . Move 2860 | 98 429 611 402 260 1060 Hop . | . . . . . . Pick Up 43 | 5 15 9 3 4 7 Fast Attach 20 | 2 1 . 7 6 4 Attach 24 | 1 5 2 5 4 7 Detach 6 | . 1 . 2 1 2 Swap 16 | . 6 5 1 2 2 Drop 41 | . 10 9 11 5 6 Fire 93 | 11 41 1 14 17 9 Melee 50 | . 10 4 8 12 16 Ram . | . . . . . . Kick 1 | . . 1 . . . Crush . | . . . . . . Escape Stasis . | . . . . . . Rewire . | . . . . . . Trap . | . . . . . . Miscellaneous . | . . . . . . Route ------- -11/Scrapyard -10/Materials (discovered 4 exits: *Mat x2 / *Min x2) -10/Mines (discovered 2 exits: *Mat x2) -9/Materials (discovered 3 exits: *Mat / [*Min] / Sto) -8/Materials -7/Factory History --------- Turn | Location | Event 9 | -11/Scrapyard | Discovered new exit (range 15) 156 | -11/Scrapyard | Entered Materials 305 | -10/Materials | Build established: Mutant 450 | -10/Materials | Discovered new exit (range 13) 483 | -10/Materials | Identified exit to Mines 528 | -10/Materials | Core integrity fell below 50% 641 | -10/Materials | Discovered new exit (range 13) 889 | -10/Materials | Entered Mines 978 | -10/Mines | YI-UF0 nonchalantly dropped a Grenade Launcher on the ground 1101 | -10/Mines | Learned Materials terminal intel 1163 | -10/Mines | Met a Derelict shopkeep closing up shop 1213 | -10/Mines | Build established: Scavenger-Mutant 1316 | -10/Mines | Discovered new exit (range 11) 1399 | -10/Mines | Assisted by bots powering up and referring to "LRC-V3" 1599 | -10/Mines | Discovered new exit (range 9) 1686 | -10/Mines | Entered Materials 1686 | -9/Materials | Accompanied by 3 allies 1686 | -9/Materials | Evolved 2 slots: Propulsion x1, Utility x1 1687 | -9/Materials | Identified exit to Storage 1688 | -9/Materials | Loaded intel: 12 terminal locations 1787 | -9/Materials | Discovered new exit (range 13) 1825 | -9/Materials | Lost 4 allies 2009 | -9/Materials | Discovered new exit (range 16) 2019 | -9/Materials | Entered another Materials area 2019 | -8/Materials | Evolved 2 slots: Utility x2 2157 | -8/Materials | Repaired Lgt. Armor Plating 2187 | -8/Materials | Repaired Lgt. Cannon+ 2212 | -8/Materials | Discovered new exit (range 13) 2274 | -8/Materials | Entered Factory 2274 | -7/Factory | Evolved 2 slots: Propulsion x1, Utility x1 2512 | -7/Factory | Build established: Hacker-Mutant 2826 | -7/Factory | Build established: Scientist-Mutant 3014 | -7/Factory | Lost 5 parts (1p1n2u1w) 3101 | -7/Factory | Core integrity fell below 50% 3197 | -7/Factory | Core integrity fell below 20% 3269 | -7/Factory | Build established: Mutant 3322 | -7/Factory | Destroyed by Y-54 Guardian with Gatling Laser Last Messages --------------- A bubble of electromagnetic force engulfs the area. Lgt. Ion Engine+ destroyed. Door malfunctions. O-24 Administrator: "IFF HANDSHAKE FAILED. SECURING TERMINAL." Acquired Adv. Visual Processing Unit. ALERT: Hostiles spotted, dispatching reinforcements to Terminal F014. Sneak attack on O-24 Administrator. Destroyed Imp. Hover Unit. O-24 Administrator system corrupted by crushing effect. O-24 Administrator destroyed. Acquired Corrupted Hacking Suite. Acquired 28 matter. Acquired Corrupted System Shield. Dropped Adv. Targeting Computer. ALERT: Cargo convoy en route, clear transfer corridor. Map ----- +----------------------------------------------------+ | | | ????????????################## | | ????????????# # | | ##########??# """""" # | | # #??# """""" # | | # """"" #??# """""" # | | # ""T"" #### """""" # | | # # + ! !+ | | # ! # ########+####### | | # = /# ##### #??# | | # * # ###### | | # # | | # / ^ | | # """" # ! | | # """" # ###### | | # """" ##### ## #????? | | #/ """" #???#+#####+####????? | | # """" #???????????????????? | | # """" #???????????????????? | | # """" #???????????????????? | | # #???????????????????? | | # #??????????????###### | | ##"#######??????????????# | | ?# #????????????????????# | | ?# #####????????????????# | | ?#Y @ #????????????????# | | ?#######????????????????# | | ????????????????????????# | | ????????????????????????# | | ????????????????????????# ? | | ????????????????????????# ? | | ????????????????????????# ?? | | ????????????????????????# ??? | | ????????????????????????# ??? | | ???????????????????????? ???? | | ?????????????????????????????? | | ?????????????????????????????? | | ?????????????????????????????? | | ?????????????????????????????? | | ?????????????????????????????? | | ?????????????????????????????? | | ?????????????????????????????? | | ?????????????????????????????? | | ?????????????????????????????? | | ?????????????????????????????? | | ?????????????????????????????? | | ?????????????????????????????? | | ?????????????????????????????? | | ?????????????????????????????? | | ?????????????????????????????? | +----------------------------------------------------+ Best States ------------- Heat Dissipation 34 Energy Generation 14 Energy Capacity 265 Matter Stores 300 Matter Capacity 300 Sight Range 20 Robot Scan Range 15 Terrain Scan Density 10 Armor Coverage 150 Evasion (%) 63 Targeting Accuracy 8 Core Analysis 6 Offensive Hacking 30 Item Schematics ----------------- None Robot Schematics ------------------ None Fabricated ------------ Nothing Repaired ---------- Lgt. Armor Plating | 25% | -8/Materials Lgt. Cannon | 43% | -8/Materials Studied --------- Flight Unit | -9/Materials | Hacked Lgt. Ion Engine | -9/Materials | Hacked Imp. Ion Engine | -9/Materials | Hacked Lgt. Cannon | -9/Materials | Hacked Imp. Carbon-fiber Leg | -7/Factory | Hacked Assault Cannon | -7/Factory | Hacked Katana | -7/Factory | Hacked Remote Datajack | -7/Factory | Hacked Alien Tech Used ----------------- None Achievements -------------- None Challenges ------------ None Game ------ Seed NeutronCargoImpeller Manual? 0 Play Time 00:53:42 Cumulative 17.0 hours Start 2026.07.14 @ 12:55:39 End 2026.07.14 @ 13:48:19 Sessions 1 Manual Loads 0 Difficulty Rogue Special Mode None Game No. 24 Rogue 24 Adventurer 0 Explorer 0 Win Type - Total 0 Types 0/0/0/0/0/0/0/0/0/0 Lore% 21 Gallery% 17 Achievement% 16 Wizard Run 0 Options --------- Layout 1 ASCII 0 Keyboard 0 Movement Arrows Keybinds 0 Fullscreen 1 Font 32/SmallcapsGlow Map View 50x35 Zoom Use 0% Tactical HUD 0 Map Filters NONE Filters NONE Steam 1 RUN: db1bf11f-b7ac-4674-884c-892c8692df9f